bitfinex/quotes_SOLUSD_20250520
["timestamp","ask_amount","ask_price","bid_price","bid_amount"]
[1747783845173,18.93763207,168.97,168.86,18.64964886]
[1747783845644,26.0,168.96,168.86,18.64964886]
[1747783845846,38.34863207,168.96,168.86,18.64964886]
[1747783846356,26.0,168.96,168.86,18.64964886]
[1747783846554,6.589,168.97,168.86,18.64964886]
[1747783846555,18.93763207,168.97,168.86,18.64964886]
[1747783846858,44.93763207,168.97,168.86,45.28964886]
[1747783847048,12.34863207,168.96,168.86,45.28964886]
[1747783850565,12.34863207,168.92,168.86,30.02]
[1747783850770,12.34863207,168.89,168.81,1.5842]
[1747783850947,12.34863207,168.89,168.82,30.02]
[1747783851137,1.5303,168.92,168.82,30.02]
[1747783851337,12.34863207,168.9,168.82,30.02]
[1747783851951,13.87893207,168.92,168.83,18.64964886]
[1747783852139,27.5303,168.92,168.83,18.64964886]
[1747783852334,39.87893207,168.92,168.83,18.64964886]
[1747783855880,39.87893207,168.92,168.82,30.02]
[1747783856783,39.87893207,168.92,168.83,3.32001959]
[1747783858253,12.34863207,168.91,168.84,3.32001959]
[1747783858658,12.34863207,168.88,168.84,3.32001959]
[1747783858862,12.34863207,168.87,168.84,3.32001959]
[1747783859150,12.34863207,168.88,168.84,3.32001959]
[1747783859474,12.34863207,168.88,168.8,30.02]
[1747783859978,12.34863207,168.87,168.8,30.02]
[1747783860377,12.34863207,168.88,168.8,30.02]
[1747783861962,26.62,168.89,168.79,26.0]
[1747783861963,12.34863207,168.87,168.79,26.0]
[1747783862165,12.34863207,168.85,168.78,30.02]
[1747783863269,38.34863207,168.87,168.78,30.02]
[1747783864080,38.34863207,168.87,168.79,3.32255897]
[1747783865172,38.34863207,168.87,168.78,30.02]
[1747783865873,38.34863207,168.87,168.79,18.64964886]
[1747783866063,26.0,168.87,168.79,18.64964886]
[1747783866770,38.34863207,168.87,168.78,30.02]
[1747783867481,12.34863207,168.86,168.78,30.02]
[1747783867664,26.0,168.87,168.78,30.02]
[1747783867665,12.34863207,168.85,168.78,30.02]
[1747783868179,12.34863207,168.84,168.78,30.02]
[1747783868377,12.34863207,168.83,168.78,30.02]
[1747783870380,12.34863207,168.82,168.74,304.08]
[1747783870676,12.34863207,168.82,168.75,29.94]
[1747783870979,12.34863207,168.81,168.75,29.94]
[1747783871375,137.2,168.83,168.75,29.94]
[1747783871376,12.34863207,168.79,168.75,29.94]
[1747783871769,12.34863207,168.8,168.75,29.94]
[1747783872278,38.98863207,168.79,168.75,29.94]
[1747783872869,26.64,168.79,168.75,29.94]
[1747783873171,12.34863207,168.77,168.7,29.94]
[1747783873594,12.34863207,168.78,168.7,29.94]
[1747783874087,26.64,168.79,168.7,29.94]
[1747783876690,26.64,168.79,168.71,18.64964886]
[1747783878173,26.64,168.79,168.7,29.94]
[1747783878686,38.98863207,168.79,168.7,29.94]
[1747783878867,38.98863207,168.79,168.68,26.0]
[1747783878868,38.98863207,168.79,168.68,18.64964886]
[1747783879070,38.98863207,168.79,168.7,18.64964886]
[1747783879680,38.98863207,168.79,168.69,29.94]
[1747783881386,26.64,168.79,168.69,29.94]
[1747783883576,137.2,168.78,168.69,29.94]
[1747783883767,155.74973207,168.78,168.69,29.94]
[1747783885390,12.34863207,168.76,168.69,29.94]
[1747783885594,12.34863207,168.77,168.69,29.94]
[1747783885790,181.74973207,168.78,168.69,29.94]
[1747783886097,169.4011,168.78,168.69,29.96]
[1747783886294,181.74973207,168.78,168.69,29.96]
[1747783886502,137.2,168.77,168.69,29.96]
[1747783888173,149.54863207,168.77,168.66,18.64964886]
[1747783888490,12.34863207,168.73,168.66,29.96]
[1747783888701,39.87873207,168.72,168.66,29.96]
[1747783888883,27.5301,168.72,168.66,29.96]
[1747783890303,27.5301,168.72,168.63,221.6]
[1747783890487,1.5301,168.72,168.64,29.96]
[1747783890896,13.87873207,168.72,168.64,29.96]
[1747783891292,149.54863207,168.71,168.64,29.96]
[1747783891604,12.34863207,168.69,168.64,29.96]
[1747783891805,143.2804,168.71,168.64,29.96]
[1747783891806,12.34863207,168.7,168.64,29.96]
[1747783893407,12.34863207,168.7,168.61,31.5067]
[1747783894093,12.34863207,168.69,168.61,29.96]
[1747783895801,12.34863207,168.67,168.61,29.96]
[1747783896004,137.2,168.68,168.61,29.96]
[1747783897807,1.506,168.77,168.64,46.26864886]
[1747783897979,33.1279,168.79,168.69,18.64964886]
[1747783898183,26.66,168.79,168.7,29.88]
[1747783899207,39.00863207,168.79,168.7,29.88]
[1747783900609,39.00863207,168.79,168.7,55.88]
[1747783901101,12.34863207,168.77,168.7,55.88]
[1747783902109,12.34863207,168.75,168.69,29.88]
[1747783905115,149.54863207,168.75,168.69,29.88]
[1747783906010,137.2,168.75,168.69,29.88]
[1747783906212,149.54863207,168.75,168.69,29.88]
[1747783906909,149.54863207,168.75,168.65,247.76]
[1747783906910,12.34863207,168.73,168.66,29.88]
[1747783907505,137.2,168.74,168.66,29.88]
[1747783907819,137.2,168.74,168.67,18.64964886]
[1747783907999,137.2,168.74,168.68,1.76194037]
[1747783908906,137.2,168.74,168.67,18.64964886]
[1747783909334,39.00863207,168.77,168.67,18.64964886]
[1747783909495,26.66,168.77,168.67,18.64964886]
[1747783909833,163.86,168.78,168.67,18.64964886]
[1747783910924,163.86,168.78,168.68,1.76366207]
[1747783911593,163.86,168.78,168.69,1.76366207]
[1747783912318,176.20863207,168.78,168.69,1.76366207]
[1747783912714,176.20863207,168.78,168.68,1.76366207]
[1747783914628,12.34863207,168.77,168.68,1.76366207]
[1747783915326,12.34863207,168.77,168.69,29.88]
[1747783915529,12.34863207,168.76,168.69,29.88]
[1747783917416,12.34863207,168.75,168.69,29.88]
[1747783918301,137.2,168.76,168.69,29.88]
[1747783918506,12.34863207,168.75,168.69,29.88]
[1747783919007,12.34863207,168.74,168.69,29.88]
[1747783919204,20.42813207,168.74,168.69,29.88]
[1747783920032,8.0795,168.74,168.69,29.88]
[1747783920332,149.54863207,168.76,168.69,29.88]
[1747783920333,137.2,168.76,168.69,29.88]
[1747783923919,40.60563207,168.78,168.69,29.88]
[1747783924218,28.257,168.78,168.69,29.88]
[1747783924621,1.597,168.78,168.69,29.88]
[1747783925736,1.597,168.78,168.7,3.33064588]
[1747783926838,1.597,168.78,168.69,29.88]
[1747783928136,163.2,168.81,168.73,18.64964886]
[1747783928137,137.2,168.81,168.73,18.64964886]
[1747783928343,26.0,168.83,168.72,18.64964886]
[1747783928527,26.0,168.83,168.72,45.30964886]
[1747783929434,26.0,168.83,168.73,3.33032616]
[1747783929641,137.2,168.84,168.76,18.64964886]
[1747783929823,6.3896,168.89,168.8,18.64964886]
[1747783930023,28.1684,168.9,168.8,18.64964886]
[1747783930024,1.5284,168.9,168.8,18.64964886]
[1747783930234,26.0,168.91,168.8,18.64964886]
[1747783930927,38.34863207,168.91,168.8,18.64964886]
[1747783931127,26.0,168.91,168.8,18.64964886]
[1747783934543,38.34863207,168.91,168.8,18.64964886]
[1747783934745,12.34863207,168.89,168.8,18.64964886]
[1747783935326,26.0,168.91,168.8,18.64964886]
[1747783935533,12.34863207,168.9,168.8,18.64964886]
[1747783936333,12.34863207,168.9,168.79,27.5577]
[1747783936334,12.34863207,168.87,168.79,26.0]
[1747783936538,26.0,168.9,168.79,26.0]
[1747783936539,38.34863207,168.89,168.79,26.0]
[1747783936847,38.34863207,168.91,168.81,18.64964886]
[1747783937154,149.54863207,168.92,168.81,18.64964886]
[1747783939051,12.34863207,168.91,168.81,18.64964886]
[1747783939357,12.34863207,168.88,168.8,29.82]
[1747783939550,0.5,168.91,168.8,29.82]
[1747783939751,149.54863207,168.92,168.81,44.64964886]
[1747783940345,137.2,168.92,168.81,44.64964886]
[1747783940545,149.54863207,168.92,168.81,44.64964886]
[1747783941430,137.2,168.92,168.84,26.0]
[1747783941632,137.2,168.92,168.85,18.64964886]
[1747783941837,137.2,168.92,168.86,29.82]
[1747783942351,12.34863207,168.94,168.86,29.82]
[1747783942535,12.34863207,168.93,168.86,29.82]
[1747783942734,26.64,168.95,168.86,29.82]
[1747783942735,12.34863207,168.92,168.86,29.82]
[1747783943157,38.98863207,168.93,168.86,29.82]
[1747783943456,26.64,168.93,168.86,29.82]
[1747783944049,26.64,168.93,168.87,18.64964886]
[1747783944836,12.34863207,168.96,168.87,18.64964886]
[1747783946065,202.18863207,168.97,168.87,18.64964886]
[1747783947465,163.84,168.97,168.87,44.64964886]
[1747783948162,163.82,168.97,168.87,44.64964886]
[1747783948367,137.2,168.97,168.87,44.64964886]
[1747783948673,137.2,168.97,168.88,1.522]
[1747783948879,144.8509,169.03,168.91,18.64964886]
[1747783949071,26.62,169.02,168.92,29.8]
[1747783952662,157.19953207,169.03,168.92,29.8]
[1747783952871,171.4709,169.03,168.92,29.8]
[1747783953177,7.6509,169.03,168.95,26.0]
[1747783954274,1.5932,169.03,168.95,26.0]
[1747783954468,38.96863207,169.05,168.95,26.0]
[1747783954870,26.62,169.05,168.96,18.64964886]
[1747783955223,1.5495,169.07,168.99,26.0]
[1747783955372,1.5495,169.07,169.0,29.8]
[1747783956490,12.34863207,169.04,169.0,29.8]
[1747783956783,12.34863207,169.04,168.97,29.74]
[1747783957587,12.34863207,169.03,168.97,29.74]
[1747783958188,12.34863207,169.01,168.97,29.74]
[1747783958379,12.34863207,168.99,168.92,18.64964886]
[1747783958680,12.34863207,168.99,168.94,29.74]
[1747783959392,12.34863207,168.99,168.92,44.64964886]
[1747783959564,12.34863207,168.99,168.92,55.74]
[1747783960203,137.2,169.02,168.92,55.74]
[1747783960371,12.34863207,169.0,168.92,55.74]
[1747783962197,137.2,169.02,168.92,55.74]
[1747783962198,12.34863207,168.98,168.92,29.74]
[1747783962370,38.96863207,168.98,168.92,29.74]
[1747783962993,12.34863207,168.97,168.92,29.74]
[1747783964068,12.34863207,168.96,168.92,29.74]
[1747783965090,12.34863207,168.96,168.89,251.2]
[1747783966102,26.62,168.98,168.89,251.2]
[1747783966269,12.34863207,168.97,168.89,251.2]
[1747783967086,26.62,168.98,168.89,221.46]
[1747783967087,12.34863207,168.96,168.89,221.46]
[1747783967374,12.34863207,168.95,168.89,221.46]
[1747783968395,12.34863207,168.97,168.89,221.46]
[1747783968597,26.62,168.98,168.89,221.46]
[1747783968804,12.34863207,168.96,168.89,221.46]
[1747783970303,26.62,168.98,168.89,221.46]
[1747783970304,12.34863207,168.97,168.89,221.46]
[1747783970800,12.34863207,168.96,168.89,221.46]
[1747783970996,12.34863207,168.95,168.89,221.46]
[1747783971190,12.34863207,168.96,168.89,221.46]
[1747783971905,149.54863207,168.96,168.89,221.46]
[1747783972573,12.34863207,168.94,168.89,221.46]
[1747783972778,12.34863207,168.93,168.89,221.46]
[1747783972992,38.96863207,168.93,168.88,29.74]
[1747783973205,26.62,168.93,168.88,29.74]
[1747783973599,38.96863207,168.93,168.88,29.74]
[1747783973796,12.34863207,168.91,168.85,55.74]
[1747783973977,12.34863207,168.91,168.85,29.74]
[1747783974186,12.34863207,168.9,168.85,29.74]
[1747783974401,38.96863207,168.89,168.83,1.5606]
[1747783974603,12.34863207,168.86,168.8,29.74]
[1747783975691,26.62,168.89,168.8,29.74]
[1747783975692,12.34863207,168.85,168.8,29.74]
[1747783976308,12.34863207,168.86,168.8,29.74]
[1747783976906,0.5,168.88,168.8,29.74]
[1747783977204,12.34863207,168.88,168.8,29.74]
[1747783977512,12.34863207,168.87,168.8,29.74]
[1747783979295,12.34863207,168.88,168.8,29.74]
[1747783980399,137.2,168.89,168.83,26.0]
[1747783981719,137.2,168.94,168.84,44.64964886]
[1747783982018,26.62,168.93,168.84,44.64964886]
[1747783982723,26.62,168.93,168.84,26.0]
[1747783982905,38.96863207,168.93,168.85,26.0]
[1747783983919,12.34863207,168.92,168.83,26.0]
[1747783984120,149.54863207,168.91,168.82,1.6122]
[1747783984420,12.34863207,168.88,168.81,21.18908567]
[1747783984594,26.62,168.87,168.81,21.18908567]
[1747783986625,38.96863207,168.87,168.81,21.18908567]
[1747783986815,12.34863207,168.86,168.81,21.18908567]
[1747783987998,26.62,168.87,168.81,21.18908567]
[1747783988696,38.96863207,168.87,168.81,21.18908567]
[1747783988931,26.62,168.87,168.81,21.18908567]
[1747783990209,26.62,168.9,168.83,26.0]
[1747783990720,26.62,168.9,168.84,26.0]
[1747783990919,26.62,168.9,168.81,21.18908567]
[1747783991110,38.96863207,168.9,168.82,26.0]
[1747783991310,26.62,168.9,168.82,26.0]
[1747783992925,26.62,168.9,168.83,18.64964886]
[1747783993421,26.62,168.9,168.84,26.0]
[1747783994026,12.34863207,168.89,168.82,26.0]
[1747783994413,12.34863207,168.87,168.81,21.18908567]
[1747783994613,12.34863207,168.88,168.81,21.18908567]
[1747783995533,12.34863207,168.89,168.81,21.18908567]
[1747783997224,39.46863207,168.9,168.81,21.18908567]
[1747783997420,26.62,168.9,168.81,21.18908567]
[1747783997808,26.62,168.9,168.82,18.64964886]
[1747783998013,163.84,168.92,168.84,26.0]
[1747783999227,176.18863207,168.92,168.84,26.0]
[1747784000413,163.84,168.92,168.84,26.0]
[1747784000613,137.2,168.92,168.84,26.0]
[1747784000815,163.84,168.92,168.84,26.0]
[1747784005538,176.18863207,168.92,168.84,26.0]
[1747784005761,137.2,168.92,168.84,26.0]
[1747784005951,26.62,168.91,168.84,26.0]
[1747784007045,26.62,168.91,168.85,29.7]
[1747784009853,137.2,168.92,168.85,29.7]
[1747784010027,163.82,168.92,168.85,31.2061]
[1747784011343,137.2,168.92,168.85,31.2061]
[1747784011853,137.2,168.92,168.86,3.32635336]
[1747784013244,137.2,168.92,168.86,18.64964886]
[1747784013447,137.2,168.92,168.87,26.0]
[1747784015731,138.8124,168.98,168.9,18.64964886]
[1747784015936,26.62,168.97,168.91,29.7]
[1747784017953,33.06359418,168.96,168.91,29.7]
[1747784018263,12.34863207,168.94,168.91,29.7]
[1747784018836,18.64253207,168.95,168.91,29.7]
[1747784019459,12.34863207,168.94,168.91,29.7]
[1747784019661,5.91961167,168.93,168.91,29.7]
[1747784019848,20.71864085,168.93,168.86,29.64]
[1747784020162,47.33864085,168.93,168.86,29.64]
[1747784020363,76.93669921,168.93,168.86,29.64]
[1747784020558,89.28533128,168.93,168.86,29.64]
[1747784021082,12.34863207,168.92,168.86,29.64]
[1747784021877,12.34863207,168.9,168.86,29.64]
[1747784022173,38.96863207,168.89,168.82,3.8965243]
[1747784022340,12.34863207,168.87,168.82,3.8965243]
[1747784022857,12.34863207,168.85,168.82,3.8965243]
[1747784023059,26.62,168.85,168.82,3.8965243]
[1747784023659,38.96863207,168.85,168.82,3.8965243]
[1747784023855,18.27174999,168.83,168.82,3.8965243]
[1747784024252,19.80914999,168.83,168.82,3.8965243]
[1747784024558,38.95879885,168.83,168.82,3.8965243]
[1747784024863,65.57879885,168.83,168.82,3.8965243]
[1747784025300,34.58051792,168.83,168.82,3.8965243]
[1747784025480,46.92914999,168.83,168.82,3.8965243]
[1747784027686,91.57879885,168.83,168.82,3.8965243]
[1747784028970,72.92914999,168.83,168.82,3.8965243]
[1747784029294,72.42914999,168.83,168.82,3.8965243]
[1747784030794,58.56311792,168.83,168.82,3.8965243]
[1747784031161,5.92311792,168.83,168.82,3.8965243]
[1747784032185,18.27174999,168.83,168.82,3.8965243]
[1747784033087,36.92139885,168.83,168.82,3.8965243]
[1747784035910,5.92311792,168.83,168.82,3.8965243]
[1747784036395,32.56311792,168.83,168.82,3.8965243]
[1747784036593,44.91174999,168.83,168.82,3.8965243]
[1747784038287,89.56139885,168.83,168.82,3.8965243]
[1747784040605,63.56139885,168.83,168.82,3.8965243]
[1747784041598,44.91174999,168.83,168.82,3.8965243]
[1747784043801,63.56139885,168.83,168.82,3.8965243]
[1747784046976,31.92311792,168.83,168.82,3.8965243]
[1747784047186,70.91174999,168.83,168.82,3.8965243]
[1747784052195,58.56311792,168.83,168.82,3.8965243]
[1747784052604,5.92311792,168.83,168.82,3.8965243]
[1747784053105,5.92276711,168.84,168.82,3.8965243]
[1747784054803,31.92276711,168.84,168.82,3.8965243]
[1747784055483,5.92206561,168.86,168.82,3.8965243]
[1747784055682,5.92206561,168.86,168.83,1.5593]
[1747784055992,5.92206561,168.86,168.83,31.1793]
[1747784056797,31.92136428,168.88,168.83,31.1793]
[1747784057017,31.92136428,168.88,168.84,6.3912]
[1747784058211,59.07340705,168.88,168.83,1.5593]
[1747784058713,46.72477498,168.88,168.83,1.5593]
[1747784059390,76.33159639,168.88,168.83,1.5593]
[1747784061114,12.34863207,168.87,168.82,3.8965243]
[1747784061702,26.0,168.85,168.82,3.8965243]
[1747784061901,26.0,168.84,168.82,3.8965243]
[1747784062321,26.0,168.83,168.82,3.8965243]
[1747784062623,12.34863207,168.83,168.82,3.8965243]
[1747784063122,18.27174999,168.83,168.82,3.8965243]
[1747784063295,5.92311792,168.83,168.82,3.8965243]
[1747784085239,31.92311792,168.83,168.82,3.8965243]
[1747784085434,44.27174999,168.83,168.82,3.8965243]
[1747784085630,31.92311792,168.83,168.82,3.8965243]
[1747784086444,5.92311792,168.83,168.82,3.8965243]
[1747784087848,26.64,168.87,168.82,3.8965243]
[1747784088230,137.7,168.9,168.82,3.8965243]
[1747784088444,26.64,168.88,168.82,3.8965243]
[1747784088833,14.80428732,168.87,168.82,3.8965243]
[1747784089040,5.92171492,168.87,168.82,33.4565243]
[1747784089741,5.92171492,168.87,168.82,39.3799722]
[1747784089947,5.92148071,168.88,168.83,18.64964886]
[1747784090129,20.72489141,168.88,168.82,33.4565243]
[1747784093548,50.33171282,168.88,168.82,3.8965243]
[1747784093851,38.98863207,168.87,168.82,3.8965243]
[1747784094022,26.64,168.87,168.82,3.8965243]
[1747784094222,26.64,168.86,168.82,3.8965243]
[1747784095247,26.64,168.86,168.83,26.0]
[1747784095546,5.92241634,168.85,168.83,26.0]
[1747784095931,5.92241634,168.85,168.82,3.8965243]
[1747784099346,20.7284572,168.85,168.82,3.8965243]
[1747784102953,26.64,168.85,168.82,3.8965243]
[1747784104235,5.92066311,168.9,168.83,26.0]
[1747784104629,5.92066311,168.9,168.84,25.25074886]
[1747784104831,26.64,168.92,168.84,31.17323271]
[1747784105145,26.64,168.92,168.84,25.25074886]
[1747784105858,26.64,168.92,168.82,3.8965243]
[1747784106046,43.346913,168.83,168.74,8.31164289]
[1747784106351,6.401,168.79,168.74,8.31164289]
[1747784106651,26.64,168.78,168.74,8.31164289]
[1747784106843,20.73828286,168.77,168.68,26.0]
[1747784107047,20.73828286,168.77,168.67,30.2754767]
[1747784107637,20.73828286,168.77,168.68,26.0]
[1747784109839,12.34863207,168.75,168.67,30.2754767]
[1747784110042,12.34863207,168.74,168.67,30.2754767]
[1747784110657,12.34863207,168.74,168.67,21.18908567]
[1747784110860,5.92662834,168.73,168.67,21.18908567]
[1747784112954,12.34863207,168.71,168.67,21.18908567]
[1747784115460,5.92768227,168.7,168.67,21.18908567]
[1747784124675,12.34863207,168.68,168.67,21.18908567]
[1747784124966,39.00863207,168.68,168.67,21.18908567]
[1747784126245,63.58666603,168.68,168.67,21.18908567]
[1747784126767,44.93701717,168.68,168.67,21.18908567]
[1747784127786,32.5883851,168.68,168.67,21.18908567]
[1747784127952,63.58666603,168.68,168.67,21.18908567]
[1747784128145,44.93701717,168.68,168.67,21.18908567]
[1747784129860,89.58666603,168.68,168.67,21.18908567]
[1747784132990,63.58666603,168.68,168.67,21.18908567]
[1747784133305,50.75654886,168.65,168.54,29.54]
[1747784133471,12.34863207,168.59,168.54,29.54]
[1747784133671,39.00863207,168.6,168.54,29.54]
[1747784134393,12.34863207,168.58,168.54,29.54]
[1747784134569,12.34863207,168.58,168.52,1.581]
[1747784135696,20.76288781,168.57,168.52,1.581]
[1747784136292,33.11151988,168.57,168.52,1.581]
[1747784137178,33.11151988,168.57,168.49,26.0]
[1747784137179,20.76288781,168.57,168.49,26.0]
[1747784137387,33.11151988,168.57,168.49,26.0]
[1747784137592,20.76288781,168.57,168.49,26.0]
[1747784138368,33.11151988,168.57,168.49,26.0]
[1747784141191,20.76288781,168.57,168.49,26.0]
[1747784144584,12.34863207,168.56,168.49,26.0]
[1747784145807,33.11151988,168.57,168.49,26.0]
[1747784146181,12.34863207,168.55,168.48,6.2102]
[1747784146497,20.76781581,168.53,168.48,6.2102]
[1747784146809,33.11644788,168.53,168.46,1.5457]
[1747784147875,5.93436591,168.51,168.46,1.5457]
[1747784148500,20.77028069,168.51,168.46,1.5457]
[1747784148700,20.77028069,168.51,168.44,55.54]
[1747784149000,12.34863207,168.49,168.44,29.54]
[1747784149183,12.34863207,168.48,168.42,1.5311]
[1747784149503,26.68,168.48,168.42,1.5311]
[1747784150002,5.93577491,168.47,168.41,12.5]
[1747784150187,20.77521219,168.47,168.41,12.5]
[1747784152396,33.12384426,168.47,168.41,12.5]
[1747784152906,38.34863207,168.46,168.41,12.5]
[1747784153409,20.77521219,168.47,168.41,12.5]
[1747784154517,5.93577491,168.47,168.41,12.5]
[1747784154798,5.93539149,168.49,168.42,26.69604886]
[1747784156102,20.76853843,168.53,168.44,18.64964886]
[1747784156705,20.76853843,168.53,168.44,29.5]
[1747784157924,2.4,168.52,168.44,29.5]
[1747784158209,20.77028069,168.51,168.44,29.5]
[1747784163097,5.93436591,168.51,168.44,35.43654321]
[1747784163295,5.93436591,168.51,168.45,18.64964886]
[1747784163494,5.93366166,168.53,168.45,18.64964886]
[1747784163811,20.76781581,168.53,168.45,18.64964886]
[1747784164609,5.93366166,168.53,168.45,18.64964886]
[1747784165311,20.76781581,168.53,168.45,18.64964886]
[1747784165895,12.34863207,168.52,168.44,29.5]
[1747784166299,38.34863207,168.51,168.44,29.5]
[1747784166595,12.34863207,168.5,168.44,29.5]
[1747784167216,65.02863207,168.51,168.44,29.5]
[1747784167403,20.77151335,168.5,168.44,29.5]
[1747784167897,33.12014542,168.5,168.44,29.5]
[1747784168106,12.34863207,168.49,168.44,29.5]
[1747784168618,50.44510385,168.5,168.41,12.5]
[1747784168619,12.34863207,168.46,168.41,12.5]
[1747784168916,12.34863207,168.45,168.41,12.5]
[1747784169090,12.34863207,168.43,168.41,12.5]
[1747784169286,18.28616917,168.42,168.41,12.5]
[1747784169685,5.9375371,168.42,168.41,12.5]
[1747784169891,18.28616917,168.42,168.41,12.5]
[1747784170111,44.28616917,168.42,168.41,12.5]
[1747784171132,51.3404501,168.42,168.41,12.5]
[1747784171299,26.64318596,168.42,168.41,12.5]
[1747784171501,51.3404501,168.42,168.41,12.5]
[1747784171702,38.99181803,168.42,168.41,12.5]
[1747784172427,51.3404501,168.42,168.41,12.5]
[1747784172958,38.99181803,168.42,168.41,12.5]
[1747784173710,46.50272906,168.42,168.41,12.5]
[1747784174019,25.7970802,168.42,168.41,12.5]
[1747784174999,44.44672906,168.42,168.41,12.5]
[1747784175405,71.14672906,168.42,168.41,12.5]
[1747784176206,91.00627216,168.42,168.41,12.5]
[1747784178507,71.14672906,168.42,168.41,12.5]
[1747784180031,25.7970802,168.42,168.41,12.5]
[1747784181514,44.94672906,168.42,168.41,12.5]
[1747784184407,70.94672906,168.42,168.41,12.5]
[1747784184936,31.9375371,168.42,168.41,12.5]
[1747784185635,51.7970802,168.42,168.41,12.5]
[1747784187919,70.94672906,168.42,168.41,6.14674248]
[1747784188131,64.80627216,168.42,168.41,6.14674248]
[1747784188724,44.94672906,168.42,168.41,6.14674248]
[1747784189636,64.80627216,168.42,168.41,6.14674248]
[1747784190336,26.0,168.39,168.31,29.5]
[1747784190533,19.8595431,168.35,168.29,1.6325]
[1747784190743,19.8595431,168.34,168.29,1.6325]
[1747784191042,26.7,168.35,168.29,1.6325]
[1747784191210,46.5595431,168.35,168.29,1.6325]
[1747784191414,19.8595431,168.34,168.29,1.6325]
[1747784191838,20.79249093,168.33,168.29,1.6325]
[1747784192420,20.79249093,168.33,168.29,1.1325]
[1747784193628,12.41932663,168.31,168.26,35.6193]
[1747784193828,20.79743299,168.29,168.25,16.14756804]
[1747784194226,5.94212371,168.29,168.25,16.14756804]
[1747784194927,5.94212371,168.29,168.25,15.64756804]
[1747784195338,5.94212371,168.29,168.25,15.14756804]
[1747784195521,5.94212371,168.29,168.25,16.79216804]
[1747784196046,5.94141762,168.31,168.25,16.79216804]
[1747784196246,33.2142883,168.31,168.25,16.79216804]
[1747784196552,20.79496167,168.31,168.25,16.79216804]
[1747784196718,33.2142883,168.31,168.25,16.79216804]
[1747784196920,20.79496167,168.31,168.25,16.79216804]
[1747784199257,20.79496167,168.31,168.29,12.41561822]
[1747784200160,5.94141762,168.31,168.3,12.41561822]
[1747784200335,5.94000594,168.35,168.3,12.41561822]
[1747784200533,5.94000594,168.35,168.34,12.41561822]
[1747784201053,5.94000594,168.35,168.31,6.09]
[1747784201362,5.94000594,168.35,168.34,12.41561822]
[1747784201865,20.78830377,168.37,168.34,12.41561822]
[1747784202657,20.78830377,168.37,168.27,55.48]
[1747784202658,12.41561822,168.35,168.3,12.41561822]
[1747784203823,20.79125578,168.34,168.3,12.41561822]
[1747784204030,12.41561822,168.33,168.29,12.41561822]
[1747784204328,12.41561822,168.32,168.28,12.41561822]
[1747784204532,12.41561822,168.33,168.29,12.41561822]
[1747784205428,62.90866798,168.34,168.29,12.41561822]
[1747784205626,62.90866798,168.34,168.33,19.85801326]
[1747784205627,20.79125578,168.34,168.33,19.85801326]
[1747784205829,14.85089699,168.34,168.33,19.85801326]
[1747784206437,5.94000594,168.35,168.33,21.49021326]
[1747784206638,5.94000594,168.35,168.34,19.85801326]
[1747784207139,5.93930035,168.37,168.34,19.85801326]
[1747784207321,5.93930035,168.37,168.36,19.85801326]
[1747784207841,20.78261385,168.41,168.36,19.85801326]
[1747784208032,20.78261385,168.41,168.39,19.85801326]
[1747784208351,47.50261385,168.41,168.39,19.85801326]
[1747784208931,47.50261385,168.41,168.38,19.85801326]
[1747784209532,47.50261385,168.41,168.39,19.85801326]
[1747784209929,67.36062711,168.41,168.37,19.85801326]
[1747784210126,67.36062711,168.41,168.36,19.85801326]
[1747784210950,47.50261385,168.41,168.38,19.85801326]
[1747784211655,47.50261385,168.41,168.37,19.85801326]
[1747784211947,67.36062711,168.41,168.37,19.85801326]
[1747784212140,19.85801326,168.4,168.36,19.85801326]
[1747784214051,40.6430955,168.39,168.33,50.93021326]
[1747784214353,40.6430955,168.39,168.32,19.85801326]